bitfinex-derivatives/quotes_SOLF0:USTF0_20240924
["timestamp","ask_amount","ask_price","bid_price","bid_amount"]
[1727172938626,3.4092,146.67,146.64,12.8398]
[1727172940837,3.4095,146.66,146.64,9.43]
[1727172941819,3.4092,146.67,146.64,12.8398]
[1727172942016,9.43,146.69,146.64,12.8398]
[1727172942324,3.35209441,146.72,146.64,9.43]
[1727172942325,9.43,146.68,146.64,9.43]
[1727172943217,3.4095,146.66,146.64,9.43]
[1727172943821,3.4096,146.65,146.63,9.43]
[1727172950227,3.4092,146.67,146.64,12.8397]
[1727172950430,3.4092,146.67,146.66,9.43]
[1727172951428,3.47582001,146.7,146.66,9.43]
[1727172951629,1.314,146.73,146.68,9.43]
[1727172951833,60.60828203,146.74,146.72,3.408]
[1727172952035,60.60828203,146.74,146.71,9.43]
[1727172952630,60.60828203,146.74,146.67,3.40735393]
[1727172952828,60.60828203,146.74,146.7,9.43]
[1727172953037,3.4079,146.73,146.7,9.43]
[1727172953835,3.4079,146.73,146.7,12.8384]
[1727172955638,3.4079,146.73,146.7,9.43]
[1727172955838,60.60828203,146.74,146.69,9.43]
[1727172956340,3.4081,146.72,146.69,9.43]
[1727172958342,60.60828203,146.74,146.7,9.43]
[1727172958534,9.43,146.77,146.73,9.43]
[1727172959139,3.4071,146.76,146.73,9.43]
[1727172960766,3.4071,146.76,146.73,12.8376]
[1727172960944,9.43,146.77,146.71,9.43]
[1727172961643,3.4074,146.75,146.71,9.43]
[1727172962136,3.4074,146.75,146.71,12.8381]
[1727172962744,3.4076,146.74,146.71,12.8381]
[1727172963644,3.4073,146.75,146.72,9.43]
[1727172963845,13.5921,146.79,146.74,9.43]
[1727172965741,3.4072,146.76,146.74,9.43]
[1727172967445,3.4069,146.77,146.74,9.43]
[1727172968051,3.4069,146.77,146.74,12.8375]
[1727172968544,62.59506256,146.83,146.76,9.43]
[1727172968751,72.02506256,146.83,146.78,9.43]
[1727172969251,3.4063,146.8,146.78,9.43]
[1727172969749,3.4067,146.78,146.75,9.43]
[1727172970343,3.4067,146.78,146.75,12.8372]
[1727172970540,3.4065,146.79,146.76,9.43]
[1727172971156,3.4065,146.79,146.76,12.8369]
[1727172972447,3.4066,146.78,146.76,9.43]
[1727172973051,3.4065,146.79,146.76,12.837]
[1727172973250,1.395,146.82,146.77,9.43]
[1727172973449,10.825,146.82,146.77,9.43]
[1727172973651,3.4063,146.8,146.77,12.8368]
[1727172973850,10.825,146.82,146.77,9.43]
[1727172974249,3.4063,146.8,146.77,12.8367]
[1727172974455,1.3641,146.84,146.79,9.43]
[1727172975650,3.4058,146.82,146.79,9.43]
[1727172976048,4.7693,146.84,146.81,9.43]
[1727172976354,1.3641,146.84,146.81,9.43]
[1727172976947,1.3641,146.84,146.81,12.8357]
[1727172977244,2.7728,146.88,146.82,9.43]
[1727172977555,3.4049,146.86,146.82,12.8355]
[1727172977854,9.43,146.86,146.82,3.4055]
[1727172978053,3.41181722,146.87,146.82,3.4055]
[1727172978355,9.43,146.86,146.82,3.4055]
[1727172978749,3.405,146.85,146.82,3.4055]
[1727172981757,12.8348,146.86,146.83,12.8353]
[1727172981955,1.3591,146.87,146.83,12.8353]
[1727172982458,1.3329,146.88,146.84,12.8351]
[1727172982663,1.3329,146.88,146.85,9.43]
[1727172982853,4.7373,146.88,146.85,9.43]
[1727172983157,3.4044,146.88,146.85,12.8349]
[1727172983955,3.4044,146.88,146.85,9.43]
[1727172985261,224.0,147.06,146.93,3.403]
[1727172985563,4.0966,147.04,146.86,1.3929]
[1727172985762,3.4017,146.99,146.87,1.3812]
[1727172986054,1.4339,146.98,146.87,1.3812]
[1727172986257,14.266,146.98,146.9,3.4036]
[1727172986449,9.43,146.96,146.87,1.3812]
[1727172986655,9.43,146.95,146.86,1.3929]
[1727172986853,2.8154,146.95,146.84,3.34774906]
[1727172987161,2.8154,146.95,146.82,2.7319]
[1727172987358,9.43,146.91,146.85,9.43]
[1727172987565,2.8154,146.95,146.88,9.43]
[1727172987765,9.43,146.94,146.88,9.43]
[1727172988060,12.2454,146.95,146.89,9.43]
[1727172988267,1.4225,146.95,146.92,9.43]
[1727172988456,14.33123586,146.98,146.92,9.43]
[1727172988853,14.33123586,146.98,146.91,9.43]
[1727172988854,9.43,146.97,146.91,9.43]
[1727172989053,10.8525,146.97,146.91,9.43]
[1727172989656,1.4225,146.97,146.92,9.43]
[1727172990372,1.4225,146.97,146.82,2.7319]
[1727172990664,9.43,146.95,146.9,9.43]
[1727172991062,10.8525,146.97,146.82,2.7319]
[1727172991260,1.3237,146.96,146.9,12.8338]
[1727172991559,1.3237,146.96,146.92,9.43]
[1727172991768,1.3237,146.96,146.93,9.43]
[1727172992863,1.4339,146.98,146.95,9.43]
[1727172993068,1.4339,146.98,146.96,9.43]
[1727172993662,1.3294,147.03,146.97,9.43]
[1727172993860,9.43,147.02,146.96,9.43]
[1727172994068,10.7594,147.03,146.97,9.43]
[1727172994262,9.43,147.02,146.96,9.43]
[1727172994464,9.43,147.0,146.94,9.43]
[1727172994666,1.3566,147.02,146.82,81.74]
[1727172994667,9.43,146.98,146.82,81.74]
[1727172994865,1.3566,147.02,146.91,9.43]
[1727172994866,3.4024,146.96,146.91,9.43]
[1727172995171,9.43,146.97,146.92,9.43]
[1727172995870,9.43,146.97,146.92,12.8332]
[1727172996058,9.43,146.97,146.92,9.43]
[1727172996263,1.3143,146.99,146.95,9.43]
[1727172997274,1.3143,146.99,146.95,12.8326]
[1727172997971,1.3143,146.99,146.95,9.43]
[1727172998165,1.3566,147.02,146.98,9.43]
[1727172998468,1.3566,147.02,146.9,2.8157]
[1727172998469,4.7302,147.03,146.99,9.43]
[1727173000167,3.401,147.02,146.99,9.43]
[1727173002467,4.7302,147.03,147.0,9.43]
[1727173002662,4.6533209,147.04,147.0,9.43]
[1727173002663,1.3049,147.04,147.0,9.43]
[1727173002969,1.3049,147.04,147.01,9.43]
[1727173003662,3.4009,147.03,147.01,9.43]
[1727173004367,4.7055,147.04,147.01,9.43]
[1727173004670,1.3049,147.04,147.01,9.43]
[1727173005064,10.7349,147.04,146.91,68.41802097]
[1727173005261,10.7349,147.04,146.99,9.43]
[1727173005465,4.7056,147.04,147.01,9.43]
[1727173006174,3.4004,147.05,147.02,9.43]
[1727173007269,1.3212,147.08,147.04,9.43]
[1727173007459,9.43,147.07,147.02,9.43]
[1727173007663,9.43,147.06,146.96,3.4023]
[1727173007864,9.43,147.06,146.99,9.43]
[1727173008061,9.43,147.04,146.93,85.13096304]
[1727173008266,1.3212,147.08,146.93,85.13096304]
[1727173008574,9.43,147.06,147.01,9.43]
[1727173008774,3.4009,147.03,147.01,9.43]
[1727173008974,9.43,147.05,146.99,9.43]
[1727173009275,3.4014,147.01,146.99,9.43]
[1727173009461,9.43,147.05,146.99,9.43]
[1727173010362,14.7,147.07,146.98,14.7]
[1727173010969,3.4011,147.02,146.98,14.7]
[1727173012469,3.4015,147.0,146.98,14.7]
[1727173012664,3.35692894,147.03,146.96,14.7]
[1727173012869,1.3002,147.02,146.94,14.7]
[1727173013071,6.14771584,147.02,146.94,14.7]
[1727173013267,3.4021,146.98,146.94,14.7]
[1727173013668,3.4018,146.99,146.94,18.1027]
[1727173013870,4.1631,147.02,146.94,14.7]
[1727173014270,3.4016,147.0,146.95,18.1025]
[1727173014470,4.1631,147.02,146.95,18.1025]
[1727173014777,3.4017,147.0,146.95,18.1025]
[1727173014977,3.4017,147.0,146.96,3.4024]
[1727173015170,4.1631,147.02,146.95,14.7]
[1727173015477,3.4015,147.0,146.95,14.7]
[1727173015679,3.4015,147.0,146.96,3.4023]
[1727173016368,3.4013,147.01,146.97,3.402]
[1727173016577,1.3002,147.02,146.97,3.402]
[1727173017074,3.4018,146.99,146.95,14.7]
[1727173017573,3.4018,146.99,146.96,3.4024]
[1727173018872,3.4016,147.0,146.97,3.4021]
[1727173020275,3.4013,147.01,146.98,18.1019]
[1727173021580,3.4011,147.02,146.99,3.4017]
[1727173022382,3.4013,147.01,146.99,3.4017]
[1727173022577,14.7,147.08,147.01,3.401]
[1727173022784,3.4011,147.02,147.0,14.7]
[1727173024482,3.4008,147.03,147.0,18.1013]
[1727173024683,14.7,147.08,147.0,18.1013]
[1727173024978,3.4009,147.03,147.0,14.7]
[1727173025385,14.7,147.08,147.0,14.7]
[1727173025780,2.7171,147.09,147.01,3.4012]
[1727173025978,2.7171,147.09,146.98,14.7]
[1727173026182,3.4012,147.02,146.98,18.1018]
[1727173026485,14.7,147.08,146.98,14.7]
[1727173027385,3.4014,147.01,146.98,14.7]
[1727173028888,3.33548152,147.04,146.98,14.7]
[1727173028889,3.4015,147.0,146.98,14.7]
[1727173029887,3.4017,146.99,146.98,14.7]
[1727173030086,14.7,147.03,146.91,150.07802097]
[1727173030285,17.5493,147.03,146.93,14.7]
[1727173030591,17.5493,147.03,146.93,18.1029]
[1727173030592,3.4025,146.96,146.93,18.1029]
[1727173031193,20.92731725,147.03,146.93,14.7]
[1727173032289,9.42,146.99,146.94,9.42]
[1727173032489,6.22731725,147.03,146.94,9.42]
[1727173032690,9.42,147.0,146.94,9.42]
[1727173032889,9.42,147.0,146.96,9.42]
[1727173033896,3.4021,146.98,146.96,9.42]
[1727173034196,9.42,147.0,146.96,9.42]
[1727173036203,6.22731725,147.03,146.9,4.059]
[1727173036396,3.4023,146.97,146.95,9.42]
[1727173037995,3.4021,146.98,146.95,12.8226]
[1727173038202,3.4021,146.98,146.96,9.42]
[1727173038388,3.4021,146.98,146.9,7.51737562]
[1727173038389,6.22731725,147.03,146.97,9.42]
[1727173038593,15.64731725,147.03,146.97,9.42]
[1727173038900,3.4018,146.99,146.97,9.42]
[1727173039095,15.64731725,147.03,146.97,9.42]
[1727173039900,3.4016,147.0,146.97,9.42]
[1727173040103,15.64731725,147.03,146.97,9.42]
[1727173041193,3.4013,147.01,146.97,12.8221]
[1727173041396,3.4013,147.01,146.99,9.42]
[1727173042103,3.4015,147.0,146.99,9.42]
[1727173042501,6.22731725,147.03,146.99,9.42]
[1727173043408,3.4013,147.01,146.99,9.42]
[1727173043906,3.4015,147.0,146.96,3.4023]
[1727173044102,3.4015,147.0,146.9,7.51737562]
[1727173044103,9.42,147.01,146.97,9.42]
[1727173044599,3.4019,146.99,146.97,9.42]
[1727173046399,3.4019,146.98,146.97,9.42]
[1727173046906,9.42,147.01,146.9,7.51737562]
[1727173047103,9.42,146.99,146.94,9.42]
[1727173047301,2.8493,147.03,146.95,9.42]
[1727173047500,9.42,147.01,146.95,9.42]
[1727173047709,3.4017,146.99,146.95,12.8225]
[1727173048505,3.4017,146.99,146.97,9.42]
[1727173051308,3.4016,147.0,146.97,9.42]
[1727173051509,2.8493,147.03,146.98,9.42]
[1727173051510,12.2693,147.03,146.98,9.42]
[1727173051809,3.37157056,147.02,146.98,9.42]
[1727173052005,3.4014,147.01,146.98,9.42]
[1727173055707,1.3695,147.05,147.0,9.42]
[1727173055899,1.3695,147.05,146.93,3.37497447]
[1727173055900,12.1282,147.08,147.03,9.42]
[1727173056103,15.46777255,147.08,147.03,9.42]
[1727173056405,3.4001,147.06,147.03,9.42]
[1727173057410,3.4,147.07,147.05,9.42]
[1727173057899,6.04777255,147.08,147.05,9.42]
[1727173057900,9.44757255,147.08,147.05,9.42]
[1727173058104,4.806,147.08,147.05,9.42]
[1727173058706,1.3537,147.1,147.06,9.42]
[1727173059200,4.753,147.1,147.06,12.82]
[1727173059799,3.38095995,147.09,146.98,3.9602]
[1727173060115,3.38095995,147.09,147.05,9.42]
[1727173060304,79.74823145,147.11,147.06,9.42]
[1727173061511,3.3993,147.1,147.06,12.82]
[1727173061905,3.4427512,147.09,147.05,9.42]
[1727173062102,3.3997,147.08,147.05,9.42]
[1727173062806,3.3997,147.08,147.05,12.8203]
[1727173064710,11.27123117,147.1,146.98,2.7177]
[1727173064711,9.42,147.06,146.98,2.7177]
[1727173065013,9.42,147.06,147.01,9.42]
[1727173065216,3.4007,147.04,147.01,9.42]
[1727173065912,9.42,147.06,147.01,9.42]
[1727173066408,3.4008,147.03,147.01,9.42]
[1727173067902,3.4008,147.03,147.0,12.8215]
[1727173068214,9.42,147.04,146.99,9.42]
[1727173068817,3.4012,147.02,146.99,9.42]
[1727173069515,3.4012,147.02,146.99,12.8217]
[1727173071811,3.4013,147.01,146.99,12.8217]
[1727173072007,3.4013,147.01,146.99,9.42]
[1727173072208,9.42,147.03,146.94,3.36849268]
[1727173072414,3.4014,147.01,146.99,9.42]
[1727173074820,3.4017,146.99,146.98,9.42]
[1727173075222,9.42,147.02,146.98,9.42]
[1727173075523,3.4017,147.0,146.98,9.42]
[1727173079619,3.4018,146.99,146.96,3.4023]
[1727173079816,3.4018,146.99,146.96,12.8223]
[1727173080412,3.4016,147.0,146.97,3.4021]
[1727173081512,3.4017,146.99,146.97,3.4021]
[1727173083616,3.4017,146.99,146.97,12.8221]
[1727173085324,3.4017,146.99,146.97,9.42]
[1727173085922,9.42,146.98,146.87,81.66]
[1727173086122,9.42,146.98,146.93,9.42]
[1727173086319,9.42,146.98,146.94,3.4027]
[1727173086842,3.4031,146.93,146.9,3.4036]
[1727173087123,9.42,146.92,146.87,9.42]
[1727173087624,9.42,146.92,146.88,9.42]
[1727173087822,12.78657215,146.92,146.88,9.42]
[1727173088019,12.78657215,146.92,146.86,3.4045]
[1727173088219,3.36657215,146.92,146.88,9.42]
[1727173088426,9.42,146.92,146.88,9.42]
[1727173088626,9.42,146.92,146.87,9.42]
[1727173088627,3.4039,146.9,146.87,9.42]
[1727173089927,3.4039,146.9,146.87,12.8245]
[1727173090521,9.42,146.92,146.88,9.42]
[1727173090726,9.42,146.93,146.88,9.42]
[1727173091424,12.8233,146.93,146.89,3.404]
[1727173091618,3.3748777,146.92,146.88,9.42]
[1727173091825,9.42,146.92,146.88,9.42]
[1727173093326,9.42,146.91,146.87,9.42]
[1727173094424,12.8235,146.92,146.87,9.42]
[1727173094728,12.8235,146.92,146.89,3.4038]
[1727173097420,3.4036,146.91,146.89,3.4038]
[1727173098829,3.4038,146.9,146.88,3.4042]
[1727173099124,9.42,146.89,146.85,9.42]
[1727173099327,12.8242,146.89,146.85,9.42]
[1727173099626,12.8242,146.89,146.84,77.86474655]
[1727173099933,9.42,146.85,146.79,9.42]
[1727173100122,12.84187872,146.85,146.79,9.42]
[1727173100529,3.4053,146.84,146.8,3.406]
[1727173101140,3.4051,146.85,146.81,12.8258]
[1727173101534,4.0444,146.88,146.77,9.42]
[1727173101535,9.42,146.82,146.77,9.42]
[1727173101858,9.42,146.83,146.77,12.8266]
[1727173102531,3.4058,146.82,146.77,12.8266]
[1727173102936,9.42,146.83,146.77,12.8266]
[1727173103734,9.42,146.82,146.77,9.42]
[1727173104236,7.5119174,146.88,146.78,9.42]
[1727173104536,9.42,146.82,146.77,9.42]
[1727173105039,7.5119174,146.88,146.73,4.90431128]
[1727173105040,9.42,146.79,146.73,14.32431128]
[1727173105227,12.83181681,146.79,146.73,14.32431128]
[1727173105634,3.4068,146.77,146.73,17.73201128]
[1727173106535,3.4075,146.74,146.73,0.57131128]
[1727173108532,9.42,146.75,146.7,7.85226311]
[1727173108739,9.42,146.72,146.7,7.85226311]
[1727173109032,20.49,146.84,146.7,7.85226311]
[1727173109237,9.42,146.76,146.71,9.42]
[1727173109738,9.42,146.73,146.67,9.42]
[1727173110127,12.8278,146.73,146.68,3.4088]
[1727173110336,3.4078,146.73,146.68,4.7608]
[1727173111033,3.4078,146.73,146.66,14.74]
[1727173111034,3.4084,146.71,146.66,3.4093]
[1727173111240,18.17232185,146.71,146.66,3.4093]
[1727173111432,18.17232185,146.71,146.63,3.46812137]
[1727173111634,21.58052185,146.71,146.66,3.4092]
[1727173112038,18.1482,146.71,146.66,3.4092]
[1727173112234,14.74,146.67,146.52,6.8249]
[1727173112447,14.74,146.67,146.59,2.8219]
[1727173112635,14.74,146.69,146.6,1.4427]
[1727173112836,3.4097,146.65,146.61,3.4104]
[1727173114136,3.4094,146.66,146.62,3.4102]
[1727173114838,18.16487847,146.65,146.56,18.22731649]
[1727173115033,14.74,146.66,146.56,14.74]
[1727173115344,3.41,146.64,146.56,18.14952487]
[1727173115740,14.74,146.66,146.46,10.242]
[1727173116041,14.74,146.64,146.54,14.74]
[1727173116244,14.74,146.64,146.55,4.1188]
[1727173116440,3.4105,146.62,146.57,3.4113]
[1727173117042,1.3172,146.69,146.46,10.242]
[1727173117239,14.74,146.66,146.56,1.3599]
[1727173117545,3.4103,146.62,146.58,3.4111]
[1727173119241,14.74,146.61,146.46,10.242]
[1727173119442,18.15329427,146.61,146.51,16.1204]
[1727173119647,14.74,146.63,146.53,14.74]
[1727173119846,4.67589248,146.69,146.56,14.74]
[1727173120047,14.74,146.67,146.54,2.865]
[1727173120241,3.4102,146.63,146.58,3.411]
[1727173120640,3.4102,146.63,146.55,14.74]
[1727173121052,3.41,146.64,146.55,14.74]
[1727173121767,14.74,146.65,146.59,3.4108]
[1727173122851,14.74,146.65,146.55,14.74]
[1727173123148,14.74,146.67,146.57,14.74]
[1727173123351,3.4098,146.65,146.61,3.4104]
[1727173123547,14.74,146.67,146.6,3.44161895]
[1727173123749,3.4092,146.67,146.64,3.4098]
[1727173123941,14.74,146.69,146.64,3.4098]
[1727173124145,14.74,146.69,146.61,2.7792]
[1727173124442,3.4087,146.7,146.62,14.74]
[1727173125756,3.4087,146.7,146.66,3.4093]
[1727173126346,1.4254,146.79,146.64,14.74]
[1727173126544,14.74,146.74,146.65,1.3444]
[1727173126746,18.22909375,146.74,146.65,1.3444]
[1727173126946,14.74,146.71,146.66,3.4094]
[1727173127552,3.4085,146.7,146.66,3.4094]
[1727173128157,18.1484,146.71,146.67,3.4091]
[1727173130157,18.1484,146.71,146.68,3.4089]
[1727173132155,14.74,146.77,146.67,14.74]
[1727173132354,1.4254,146.79,146.68,17.6052]
[1727173132551,18.1463,146.8,146.7,14.74]
[1727173132855,14.74,146.8,146.71,1.3478]
[1727173133153,3.4068,146.77,146.74,3.4073]
[1727173133658,14.74,146.78,146.71,1.3478]
[1727173133852,14.74,146.74,146.68,2.8652]
[1727173134760,14.74,146.8,146.68,2.8652]
[1727173134761,14.74,146.76,146.68,2.8652]
[1727173135757,3.4076,146.74,146.71,3.4082]
[1727173136055,14.74,146.76,146.71,3.4082]
[1727173136453,3.4074,146.75,146.71,3.4082]
[1727173137259,3.4074,146.75,146.72,3.408]
[1727173137455,14.74,146.78,146.69,14.74]
[1727173137763,4.78027679,146.84,146.7,14.74]
[1727173137764,14.74,146.8,146.7,14.74]
[1727173138060,3.4068,146.78,146.74,3.4075]
[1727173138557,3.4068,146.77,146.71,1.3689]
[1727173139065,3.4068,146.77,146.74,3.4074]
[1727173139360,3.4066,146.78,146.74,3.4074]
[1727173139760,3.4065,146.79,146.75,3.4072]
[1727173139963,14.74,146.82,146.72,14.74]
[1727173140469,3.4064,146.79,146.76,3.4069]
[1727173140862,3.4063,146.8,146.77,3.4066]
[1727173141064,14.74,146.82,146.72,14.74]
[1727173141567,3.406,146.81,146.72,14.74]
[1727173141957,3.406,146.81,146.77,3.4066]
[1727173142156,3.4062,146.8,146.72,14.74]
[1727173142363,14.74,146.82,146.72,14.74]
[1727173142561,3.406,146.81,146.77,3.4067]
[1727173142765,3.406,146.81,146.75,14.74]
[1727173142959,14.74,146.83,146.75,14.74]
[1727173143360,3.4058,146.82,146.78,3.4064]
[1727173143556,14.74,146.83,146.78,3.4064]
[1727173144163,3.4059,146.81,146.78,3.4064]
[1727173146465,3.4062,146.8,146.77,3.4067]
[1727173146770,14.74,146.8,146.71,1.3689]
[1727173146968,14.74,146.78,146.71,1.3689]
[1727173147565,3.4074,146.75,146.72,3.408]
[1727173147765,14.74,146.78,146.71,1.3689]
[1727173148067,14.74,146.8,146.71,1.3689]
[1727173148068,3.4075,146.74,146.71,4.777]
[1727173148268,14.74,146.76,146.71,1.3689]
[1727173149374,3.4076,146.74,146.71,4.777]
[1727173150673,14.74,146.74,146.68,1.4364]
[1727173151369,3.408,146.73,146.7,3.4084]
[1727173151774,3.4074,146.75,146.72,3.4078]
[1727173152270,16.1421,146.78,146.69,17.4565]
[1727173153366,14.74,146.78,146.69,17.4565]
[1727173153772,3.4071,146.76,146.73,3.4076]
[1727173155974,14.74,146.76,146.71,3.4081]
[1727173156173,18.20356306,146.76,146.71,3.4081]
[1727173156473,3.4077,146.74,146.71,3.4081]
[1727173157176,21.61076306,146.76,146.73,3.4077]
[1727173157369,18.20356306,146.76,146.69,2.7165]
[1727173157776,18.20356306,146.76,146.71,3.4081]
[1727173158667,3.4076,146.74,146.71,3.4081]
[1727173158972,3.4076,146.74,146.69,2.7165]
[1727173158973,3.4076,146.74,146.72,3.408]
[1727173162276,3.4074,146.75,146.72,3.408]
[1727173164482,3.4074,146.75,146.73,3.4077]
[1727173164884,14.74,146.78,146.69,17.4565]
[1727173165385,3.4072,146.76,146.73,3.4076]
[1727173166587,3.4072,146.76,146.74,3.4074]
[1727173167279,3.4069,146.77,146.75,3.4073]
[1727173167882,3.4069,146.77,146.74,3.4073]
[1727173168889,3.4069,146.77,146.75,3.4072]
[1727173169388,3.4066,146.78,146.75,3.4072]
[1727173170389,3.4069,146.77,146.75,3.4072]
[1727173171083,3.4066,146.78,146.75,3.4072]
[1727173172889,14.74,146.79,146.69,2.7165]
[1727173173090,2.323,146.83,146.69,2.7165]
[1727173173091,14.74,146.77,146.69,2.7165]
[1727173173687,14.74,146.75,146.69,2.7165]
[1727173173991,18.13685028,146.75,146.69,2.7165]
[1727173174380,9.42,146.72,146.7,3.4083]
[1727173174586,9.42,146.71,146.58,230.0]
[1727173174897,9.42,146.7,146.64,9.42]
[1727173175189,9.42,146.71,146.66,9.42]
[1727173175384,12.8282,146.71,146.66,9.42]
[1727173176390,12.8282,146.71,146.65,14.72]
[1727173176391,3.4082,146.71,146.65,14.72]
[1727173176791,3.4082,146.71,146.69,3.4087]
[1727173181698,3.408,146.72,146.69,3.4087]
[1727173181902,17.0754,146.77,146.67,14.72]
[1727173182209,17.0754,146.77,146.69,14.72]
[1727173182692,3.4076,146.74,146.71,3.4081]
[1727173182897,79.91160375,146.78,146.71,14.72]
[1727173183196,3.4069,146.77,146.74,3.4074]
[1727173184097,3.4071,146.76,146.74,3.4074]
[1727173184289,3.4071,146.76,146.73,3.4076]
[1727173184697,3.4074,146.75,146.72,3.4079]
[1727173185893,79.91160375,146.78,146.72,3.4079]
[1727173185894,3.4075,146.74,146.72,3.4079]
[1727173186086,14.72,146.77,146.72,3.4079]
[1727173186491,3.4074,146.75,146.72,3.4079]
[1727173186800,3.32844674,146.76,146.72,3.4079]
[1727173187000,3.4075,146.75,146.72,3.4079]
[1727173188107,3.4075,146.74,146.72,3.4079]
[1727173198603,79.91160375,146.78,146.72,9.43]
[1727173198802,9.43,146.77,146.72,9.43]
[1727173199907,12.8372,146.76,146.73,3.4076]
[1727173200106,9.43,146.76,146.73,3.4076]
[1727173200515,79.91160375,146.78,146.71,9.43]
[1727173200710,9.43,146.77,146.72,9.43]
[1727173201112,12.837,146.77,146.74,3.4074]
[1727173201317,0.9246,146.81,146.74,9.43]
[1727173201513,9.43,146.79,146.74,9.43]
[1727173201708,9.43,146.79,146.75,3.4071]
[1727173201912,9.43,146.77,146.72,9.43]
[1727173202421,9.43,146.78,146.72,9.43]
[1727173203015,9.43,146.79,146.75,9.43]
[1727173203228,9.43,146.81,146.76,9.43]
[1727173204112,3.4062,146.8,146.77,3.4068]
[1727173205815,3.4062,146.8,146.78,3.4066]
[1727173206209,3.4057,146.82,146.77,9.43]
[1727173206610,3.4057,146.82,146.79,3.4062]
[1727173206918,3.4057,146.82,146.79,12.8362]
[1727173207617,3.4057,146.82,146.79,3.4062]
[1727173209412,3.4057,146.82,146.8,3.4061]
[1727173209920,3.4057,146.82,146.77,10.7817]
[1727173210313,3.4055,146.83,146.79,9.43]
[1727173210518,1.4442,146.88,146.8,9.43]
[1727173210824,9.43,146.86,146.8,9.43]
[1727173211317,9.43,146.87,146.81,9.43]
[1727173211922,3.4049,146.86,146.83,3.4053]
[1727173212113,9.43,146.84,146.79,9.43]
[1727173212521,12.8354,146.84,146.79,9.43]
[1727173212714,9.43,146.84,146.79,9.43]
[1727173213117,9.43,146.81,146.78,2.7239]
[1727173213612,9.43,146.83,146.8,3.4061]
[1727173214215,12.8356,146.83,146.8,3.4061]
[1727173215220,3.4057,146.82,146.8,3.4061]
[1727173217729,9.43,146.81,146.78,2.7239]
[1727173218221,9.43,146.81,146.78,12.1539]
[1727173218826,9.43,146.81,146.79,3.4062]
[1727173220126,3.4057,146.82,146.79,3.4062]
[1727173220729,3.4057,146.82,146.8,3.4061]
[1727173224418,12.8355,146.83,146.8,3.4061]
[1727173225624,3.4057,146.82,146.8,3.4061]
[1727173229429,1.3819,146.89,146.81,9.43]
[1727173229630,9.43,146.87,146.82,9.43]
[1727173229825,3.4051,146.85,146.82,12.8355]
[1727173230128,9.43,146.87,146.82,3.4055]
[1727173230525,1.3819,146.89,146.82,3.4055]
[1727173230933,9.43,146.86,146.82,3.4055]
[1727173231436,3.405,146.85,146.82,3.4055]
[1727173234628,3.4052,146.84,146.82,3.4055]